fUST/lending_fUST_20241221
["ID","MTS","AMOUNT","RATE_DAILY","PERIOD"]
[346123686,1734723037703,-615.77,0.00022191,6]
[346123687,1734723037713,-500.0,0.00022191,6]
[346123688,1734723037725,-500.0,0.00022191,6]
[346123689,1734723037734,-1273.72,0.00022191,6]
[346123690,1734723037743,-500.0,0.00022191,6]
[346123691,1734723037752,-500.0,0.00022191,6]
[346123692,1734723037762,-168.0,0.00022191,6]
[346123693,1734723037772,-1198.09,0.00022191,6]
[346123694,1734723037781,-666.5,0.00022191,6]
[346123695,1734723037790,-500.0,0.00022191,6]
[346123696,1734723037802,-500.0,0.00022191,6]
[346123697,1734723037811,-500.0,0.00022191,6]
[346123698,1734723037820,-965.31,0.00022191,6]
[346123699,1734723037829,-500.0,0.00022191,6]
[346123700,1734723037837,-500.0,0.00022191,6]
[346123701,1734723037846,-500.0,0.00022191,6]
[346123702,1734723037856,-500.0,0.00022191,6]
[346123703,1734723037865,-500.0,0.00022191,6]
[346123704,1734723037875,-500.0,0.00022191,6]
[346123705,1734723037885,-500.0,0.00022191,6]
[346123706,1734723037894,-500.0,0.00022191,6]
[346123707,1734723037903,-500.0,0.00022191,6]
[346123708,1734723037913,-991.32,0.00022191,6]
[346123709,1734723037922,-500.0,0.00022191,6]
[346123710,1734723037931,-151.0,0.00022191,7]
[346123711,1734723037941,-500.0,0.00022191,6]
[346123712,1734723037951,-151.0,0.00022191,7]
[346123713,1734723037961,-151.0,0.00022191,7]
[346123714,1734723037971,-151.0,0.00022191,7]
[346123715,1734723037980,-151.0,0.00022191,7]
[346123716,1734723037990,-500.0,0.00022191,6]
[346123717,1734723037999,-641.94,0.00022191,6]
[346123718,1734723038008,-601.21,0.00022191,6]
[346123720,1734723038020,-848.47,0.00022191,6]
[346123721,1734723038030,-500.0,0.00022191,6]
[346123722,1734723038039,-1309.84,0.00022191,6]
[346123723,1734723038051,-500.0,0.00022191,6]
[346123724,1734723038061,-500.0,0.00022191,6]
[346123725,1734723038071,-151.0,0.00022191,7]
[346123726,1734723038080,-151.0,0.00022191,7]
[346123727,1734723038090,-151.0,0.00022191,7]
[346123728,1734723038099,-182.52147833,0.00022191,6]
[346123729,1734723038109,-151.0,0.00022191,7]
[346123730,1734723038119,-195.81288,0.00022191,7]
[346123731,1734723038128,-500.0,0.00022191,6]
[346123732,1734723038138,-1226.25,0.00022191,6]
[346123733,1734723038147,-1143.27,0.00022191,6]
[346123734,1734723038157,-500.0,0.00022191,6]
[346123735,1734723038167,-500.0,0.00022191,6]
[346123736,1734723038176,-744.81,0.00022191,6]
[346123738,1734723038186,-500.0,0.00022191,6]
[346123739,1734723038195,-500.0,0.00022191,6]
[346123740,1734723038204,-500.0,0.00022191,6]
[346123741,1734723038214,-500.0,0.00022191,6]
[346123742,1734723038223,-500.0,0.00022191,6]
[346123743,1734723038233,-502.59,0.00022191,6]
[346123744,1734723038242,-500.0,0.00022191,6]
[346123745,1734723038251,-500.0,0.00022191,6]
[346123746,1734723038260,-500.0,0.00022191,6]
[346123747,1734723038270,-500.0,0.00022191,6]
[346123748,1734723038279,-500.0,0.00022191,6]
[346123749,1734723038289,-1744.59,0.00022191,6]
[346123750,1734723038300,-500.0,0.00022191,6]
[346123751,1734723038310,-1139.63,0.00022191,6]
[346123752,1734723038319,-949.11,0.00022191,6]
[346123754,1734723038328,-500.0,0.00022191,6]
[346123755,1734723038337,-787.66,0.00022191,6]
[346123756,1734723038347,-174.172316,0.00022191,7]
[346123757,1734723038356,-174.172316,0.00022191,7]
[346123758,1734723038366,-197.592629,0.00022191,7]
[346123760,1734723038375,-174.172316,0.00022191,7]
[346123762,1734723038385,-197.592629,0.00022191,7]
[346123763,1734723038394,-197.592629,0.00022191,7]
[346123764,1734723038403,-174.172316,0.00022191,7]
[346123765,1734723038412,-197.592629,0.00022191,7]
[346123766,1734723038422,-174.172316,0.00022191,7]
[346123767,1734723038432,-500.0,0.00022191,6]
[346123768,1734723038441,-500.0,0.00022191,6]
[346123769,1734723038450,-197.592629,0.00022191,7]
[346123770,1734723038459,-197.592629,0.00022191,7]
[346123771,1734723038468,-197.592629,0.00022191,7]
[346123772,1734723038477,-197.592629,0.00022191,7]
[346123773,1734723038486,-197.592629,0.00022191,7]
[346123774,1734723038496,-174.172316,0.00022191,7]
[346123775,1734723038505,-197.592634,0.00022191,7]
[346123776,1734723038514,-174.172316,0.00022191,7]
[346123778,1734723038523,-174.172316,0.00022191,7]
[346123780,1734723038532,-174.172316,0.00022191,7]
[346123782,1734723038541,-174.172318,0.00022191,7]
[346123783,1734723038551,-500.0,0.00022191,6]
[346123785,1734723038560,-500.0,0.00022191,6]
[346123787,1734723038570,-500.0,0.00022191,6]
[346123789,1734723038580,-2300.52,0.00022191,6]
[346123790,1734723038590,-500.0,0.00022191,6]
[346123792,1734723038599,-500.0,0.00022191,6]
[346123793,1734723038608,-500.0,0.00022191,6]
[346123794,1734723038617,-953.6,0.00022191,6]
[346123796,1734723038626,-665.65,0.00022191,6]
[346123797,1734723038635,-500.0,0.00022191,6]
[346123798,1734723038644,-839.1,0.00022191,6]
[346123799,1734723038653,-1057.57,0.00022191,6]
[346123800,1734723038662,-500.0,0.00022191,6]
[346123801,1734723038671,-1284.74,0.00022191,6]
[346123802,1734723038681,-500.0,0.00022191,6]
[346123803,1734723038690,-500.0,0.00022191,6]
[346123804,1734723038699,-500.0,0.00022191,6]
[346123805,1734723038709,-500.0,0.00022191,6]
[346123806,1734723038724,-500.0,0.00022191,6]
[346123807,1734723038733,-500.0,0.00022191,6]
[346123808,1734723038742,-940.1491302,0.00022191,7]
[346123809,1734723038751,-940.1491302,0.00022191,7]
[346123810,1734723038760,-500.0,0.00022191,6]
[346123811,1734723038770,-500.0,0.00022191,6]
[346123812,1734723038779,-500.0,0.00022191,6]
[346123813,1734723038788,-500.0,0.00022191,6]
[346123814,1734723038802,-500.0,0.00022191,6]
[346123815,1734723038812,-500.0,0.00022191,6]
[346123816,1734723038821,-1025.07,0.00022191,6]
[346123817,1734723038830,-500.0,0.00022191,6]
[346123818,1734723038839,-151.0,0.00022191,7]
[346123819,1734723038848,-151.0,0.00022191,7]
[346123820,1734723038857,-151.0,0.00022191,7]
[346123821,1734723038867,-151.0,0.00022191,7]
[346123822,1734723038876,-151.0,0.00022191,7]
[346123823,1734723038886,-281.164174,0.00022191,7]
[346123824,1734723038896,-1226.92,0.00022191,6]
[346123825,1734723038905,-500.0,0.00022191,6]
[346123826,1734723038914,-500.0,0.00022191,6]
[346123827,1734723038923,-651.28,0.00022191,6]
[346123828,1734723038932,-500.0,0.00022191,6]
[346123829,1734723038941,-500.0,0.00022191,6]
[346123830,1734723038950,-1804.11,0.00022191,6]
[346123831,1734723038959,-500.0,0.00022191,6]
[346123832,1734723038968,-4326.16,0.00022191,6]
[346123833,1734723038977,-500.0,0.00022191,6]
[346123835,1734723038987,-500.0,0.00022191,6]
[346123837,1734723038995,-500.0,0.00022191,6]
[346123839,1734723039005,-500.0,0.00022191,6]
[346123841,1734723039014,-500.0,0.00022191,6]
[346123843,1734723039024,-210.24267769,0.00022191,6]
[346123844,1734723039033,-688.87,0.00022191,6]
[346123845,1734723039045,-500.0,0.00022191,6]
[346123846,1734723039055,-500.0,0.00022191,6]
[346123847,1734723039064,-2517.2230173,0.00022191,6]
[346123848,1734723040063,-272.35112235,0.00022173,2]
[346123849,1734723040073,-1205.42580655,0.00022191,6]
[346123850,1734723040122,-9619.94117615,0.00022191,6]
[346123851,1734723040131,-500.0,0.00022191,6]
[346123852,1734723040142,-500.0,0.00022191,6]
[346123853,1734723040151,-500.0,0.00022191,6]
[346123854,1734723040161,-500.0,0.00022191,6]
[346123855,1734723040171,-500.0,0.00022191,6]
[346123856,1734723040180,-46.55308182,0.00022191,6]
[346123857,1734723040192,-453.44691818,0.00022191,6]
[346123858,1734723040202,-369.99115266,0.00022191,6]
[346123859,1734723040211,-7766.34192926,0.00022191,6]
[346123860,1734723040268,-1661.34807074,0.00022191,6]
[346123861,1734723040278,-500.0,0.00022191,6]
[346123862,1734723040288,-500.0,0.00022191,6]
[346123863,1734723040299,-6976.19,0.00022191,6]
[346123864,1734723040309,-214.216858,0.00022191,7]
[346123865,1734723040319,-214.216858,0.00022191,7]
[346123866,1734723040328,-564.38,0.00022191,6]
[346123867,1734723040338,-214.216858,0.00022191,7]
[346123868,1734723040347,-214.216858,0.00022191,7]
[346123869,1734723040357,-214.216858,0.00022191,7]
[346123870,1734723040367,-214.216858,0.00022191,7]
[346123872,1734723040376,-500.0,0.00022191,6]
[346123873,1734723040385,-151.0,0.00022191,7]
[346123874,1734723040395,-151.0,0.00022191,7]
[346123875,1734723040404,-151.0,0.00022191,7]
[346123876,1734723040414,-500.0,0.00022191,6]
[346123877,1734723040423,-151.0,0.00022191,7]
[346123879,1734723040433,-151.0,0.00022191,7]
[346123880,1734723040442,-214.216858,0.00022191,7]
[346123881,1734723040451,-151.0,0.00022191,7]
[346123882,1734723040460,-214.216858,0.00022191,7]
[346123883,1734723040469,-214.216858,0.00022191,7]
[346123884,1734723040478,-214.216858,0.00022191,7]
[346123885,1734723040487,-214.216858,0.00022191,7]
[346123886,1734723040498,-214.216852,0.00022191,7]
[346123887,1734723040507,-500.0,0.00022191,6]
[346123888,1734723040516,-2041.94,0.00022191,2]
[346123889,1734723040525,-585.64,0.00022191,6]
[346123890,1734723040534,-500.0,0.00022191,6]
[346123891,1734723040545,-4335.79,0.00022191,6]
[346123892,1734723040554,-500.0,0.00022191,6]
[346123893,1734723040563,-1183.05,0.00022191,6]
[346123894,1734723040573,-500.0,0.00022191,6]
[346123895,1734723040582,-1519.71,0.00022191,6]
[346123896,1734723040591,-500.0,0.00022191,6]
[346123897,1734723040600,-500.0,0.00022191,6]
[346123898,1734723040609,-1536.53,0.00022191,6]
[346123899,1734723040620,-660.84,0.00022191,6]
[346123900,1734723040630,-733.81,0.00022191,6]
[346123901,1734723040640,-500.0,0.00022191,6]
[346123902,1734723040649,-151.0,0.00022191,7]
[346123903,1734723040658,-151.0,0.00022191,7]
[346123904,1734723040667,-151.0,0.00022191,7]
[346123905,1734723040677,-151.0,0.00022191,7]
[346123906,1734723040687,-2518.2,0.00022191,6]
[346123908,1734723040696,-226.35922038,0.00022191,6]
[346123909,1734723040705,-151.0,0.00022191,7]
[346123910,1734723040717,-672.82,0.00022191,6]
[346123911,1734723040728,-294.080292,0.00022191,7]
[346123912,1734723040737,-294.080292,0.00022191,7]
[346123913,1734723040746,-151.0,0.00022191,7]
[346123914,1734723040757,-500.0,0.00022191,6]
[346123915,1734723040766,-294.080292,0.00022191,7]
[346123916,1734723040776,-151.0,0.00022191,7]
[346123917,1734723040785,-294.080292,0.00022191,7]
[346123918,1734723040796,-243.016145,0.00022191,7]
[346123919,1734723040806,-294.080292,0.00022191,7]
[346123920,1734723040815,-294.080292,0.00022191,7]
[346123921,1734723040824,-294.080292,0.00022191,7]
[346123922,1734723040834,-294.080292,0.00022191,7]
[346123923,1734723040843,-294.080292,0.00022191,7]
[346123924,1734723040853,-294.08029962,0.00022191,7]
[346123925,1734723040862,-500.0,0.00022191,6]
[346123926,1734723040871,-1157.87,0.00022191,6]
[346123927,1734723040881,-4095.84,0.00022191,6]
[346123928,1734723040891,-500.0,0.00022191,6]
[346123929,1734723040900,-631.8,0.00022191,6]
[346123930,1734723040910,-779.01,0.00022191,6]
[346123931,1734723040919,-500.0,0.00022191,6]
[346123932,1734723040929,-1790.0,0.00022191,6]
[346123933,1734723040938,-500.0,0.00022191,6]
[346123934,1734723040948,-500.0,0.00022191,6]
[346123935,1734723040957,-500.0,0.00022191,6]
[346123936,1734723040966,-12302.29,0.00022191,6]
[346123937,1734723040976,-177.233226,0.00022191,7]
[346123938,1734723040986,-177.233226,0.00022191,7]
[346123939,1734723040995,-177.233226,0.00022191,7]
[346123940,1734723041005,-177.233226,0.00022191,7]
[346123941,1734723041015,-500.0,0.00022191,6]
[346123942,1734723041025,-1656.86,0.00022191,6]
[346123943,1734723041034,-500.0,0.00022191,6]
[346123944,1734723041044,-177.233226,0.00022191,7]
[346123945,1734723041054,-831.02,0.00022191,6]
[346123946,1734723041063,-500.0,0.00022191,6]
[346123947,1734723041073,-177.233226,0.00022191,7]
[346123948,1734723041083,-177.233226,0.00022191,7]
[346123949,1734723041093,-500.0,0.00022191,6]
[346123950,1734723041103,-177.233226,0.00022191,7]
[346123951,1734723041112,-177.233226,0.00022191,7]
[346123952,1734723041121,-177.233217,0.00022191,7]
[346123953,1734723041130,-500.0,0.00022191,6]
[346123954,1734723041140,-500.0,0.00022191,6]
[346123955,1734723041149,-1919.88,0.00022191,6]
[346123956,1734723041159,-557.9,0.00022191,6]
[346123957,1734723041168,-500.0,0.00022191,6]
[346123958,1734723041178,-1775.95,0.00022191,6]
[346123959,1734723041187,-500.0,0.00022191,6]
[346123960,1734723041196,-500.0,0.00022191,6]
[346123961,1734723041206,-500.0,0.00022191,6]
[346123962,1734723041215,-500.0,0.00022191,6]
[346123963,1734723041224,-732.03,0.00022191,6]
[346123964,1734723041233,-629.98,0.00022191,6]
[346123965,1734723041242,-800.13,0.00022191,6]
[346123966,1734723041252,-3624.62,0.00022191,6]
[346123967,1734723041262,-500.0,0.00022191,6]
[346123968,1734723041272,-500.0,0.00022191,6]
[346123969,1734723041282,-500.0,0.00022191,6]
[346123970,1734723041291,-500.0,0.00022191,6]
[346123971,1734723041304,-841.8,0.00022191,6]
[346123972,1734723041313,-500.0,0.00022191,6]
[346123973,1734723041321,-46817.33,0.00022191,6]
[346123974,1734723041330,-500.0,0.00022191,6]
[346123975,1734723041340,-500.0,0.00022191,6]
[346123976,1734723041349,-500.0,0.00022191,6]
[346123977,1734723041360,-534.83,0.00022191,6]
[346123978,1734723041370,-926.15,0.00022191,6]
[346123979,1734723041380,-4074.17,0.00022191,6]
[346123980,1734723041390,-500.0,0.00022191,6]
[346123981,1734723041400,-717.4,0.00022191,6]
[346123982,1734723041409,-2314.83,0.00022191,6]
[346123983,1734723041418,-6874.85,0.00022191,6]
[346123984,1734723041427,-565.48,0.00022191,6]
[346123985,1734723041437,-1055.54,0.00022191,6]
[346123986,1734723041446,-500.0,0.00022191,6]
[346123987,1734723041456,-500.0,0.00022191,6]
[346123988,1734723041465,-2469.02,0.00022191,6]
[346123989,1734723041475,-500.0,0.00022191,6]
[346123990,1734723041484,-500.0,0.00022191,6]
[346123991,1734723041493,-500.0,0.00022191,6]
[346123992,1734723041502,-1823.83,0.00022191,6]
[346123993,1734723041623,-500.0,0.00022191,6]
[346123994,1734723041633,-664.74,0.00022191,6]
[346123995,1734723041642,-2005.09,0.00022191,6]
[346123996,1734723041651,-500.0,0.00022191,6]
[346123997,1734723041660,-1748.33,0.00022191,6]
[346123998,1734723041669,-500.0,0.00022191,6]
[346123999,1734723041678,-302.0,0.00022192,2]
[346124000,1734723041687,-541.47830712,0.00022228,2]
[346124001,1734723041696,-150.742,0.00022237,2]
[346124002,1734723041705,-34470.0,0.00022237,2]
[346124003,1734723041717,-2141.0,0.00022237,2]
[346124004,1734723041728,-533.0,0.00022237,2]
[346124005,1734723041737,-178.1187287,0.00022274,2]
[346124006,1734723041746,-500.0,0.00022274,2]
[346124007,1734723041755,-515.75296013,0.00022274,2]
[346124008,1734723041765,-150.11,0.00022274,2]
[346124009,1734723041774,-172.644765,0.00022327,2]
[346124010,1734723041783,-187.0,0.000224,2]
[346124011,1734723041796,-151.0,0.000224,9]
[346124012,1734723041805,-151.0,0.000224,5]
[346124013,1734723041814,-541.47830712,0.00022434,2]
[346124014,1734723041823,-500.0,0.00022465,6]
[346124015,1734723041832,-500.0,0.00022465,6]
[346124016,1734723041841,-500.0,0.00022465,6]
[346124017,1734723041850,-241.92017423,0.00022465,6]
[346124018,1734723041859,-500.0,0.00022465,6]
[346124019,1734723041869,-500.0,0.00022465,6]
[346124020,1734723041878,-500.0,0.00022465,6]
[346124021,1734723041887,-500.0,0.00022465,6]
[346124022,1734723041896,-200.0,0.00022465,6]
[346124023,1734723041906,-500.0,0.00022465,6]
[346124024,1734723041915,-500.0,0.00022465,6]
[346124025,1734723041924,-560.58,0.00022465,6]
[346124026,1734723041933,-500.0,0.00022465,6]
[346124027,1734723041942,-500.0,0.00022465,6]
[346124028,1734723041951,-500.0,0.00022465,6]
[346124029,1734723041961,-500.0,0.00022465,6]
[346124030,1734723041970,-500.0,0.00022465,6]
[346124031,1734723041979,-746.47,0.00022465,6]
[346124032,1734723041988,-500.0,0.00022465,6]
[346124033,1734723041998,-603.34,0.00022465,6]
[346124034,1734723042007,-500.0,0.00022465,6]
[346124035,1734723042018,-500.0,0.00022465,6]
[346124036,1734723042027,-295.5017037,0.00022465,6]
[346124037,1734723042192,-5164.75756255,0.00022191,7]
[346124038,1734723042202,-2685.13094583,0.00022191,7]
[346124039,1734723042214,-2479.62661672,0.00022191,7]
[346124040,1734723042223,-286.86982128,0.00022465,6]
[346124041,1734723042233,-500.0,0.00022465,6]
[346124042,1734723042243,-500.0,0.00022465,6]
[346124043,1734723042252,-500.0,0.00022465,6]
[346124044,1734723042262,-500.0,0.00022465,6]
[346124045,1734723042272,-500.0,0.00022465,6]
[346124046,1734723042282,-500.0,0.00022465,6]
[346124047,1734723042292,-500.0,0.00022465,6]
[346124048,1734723042303,-500.0,0.00022465,6]
[346124049,1734723042313,-500.0,0.00022465,6]
[346124050,1734723042323,-500.0,0.00022465,6]
[346124051,1734723042333,-500.0,0.00022465,6]
[346124052,1734723042343,-500.0,0.00022465,6]
[346124053,1734723042352,-500.0,0.00022465,6]
[346124054,1734723042362,-500.0,0.00022465,6]
[346124055,1734723042372,-500.0,0.00022465,6]
[346124056,1734723042382,-500.0,0.00022465,6]
[346124057,1734723042392,-500.0,0.00022465,6]
[346124058,1734723042402,-500.0,0.00022465,6]
[346124059,1734723042411,-500.0,0.00022465,6]
[346124060,1734723042421,-500.0,0.00022465,6]
[346124061,1734723042431,-500.0,0.00022465,6]
[346124062,1734723042440,-500.0,0.00022465,6]
[346124063,1734723042449,-500.0,0.00022465,6]
[346124064,1734723042459,-500.0,0.00022465,6]
[346124065,1734723042468,-500.0,0.00022465,6]
[346124066,1734723042477,-1067.21,0.00022465,6]
[346124067,1734723042487,-500.0,0.00022465,6]
[346124068,1734723042497,-615.77,0.00022465,6]
[346124069,1734723042506,-500.0,0.00022465,6]
[346124070,1734723042516,-500.0,0.00022465,6]
[346124071,1734723042525,-1273.72,0.00022465,6]
[346124072,1734723042534,-500.0,0.00022465,6]
[346124073,1734723042546,-500.0,0.00022465,6]
[346124074,1734723042555,-168.0,0.00022465,6]
[346124075,1734723042565,-1198.09,0.00022465,6]
[346124076,1734723042574,-666.5,0.00022465,6]
[346124077,1734723042583,-500.0,0.00022465,6]
[346124078,1734723042592,-500.0,0.00022465,6]
[346124079,1734723042601,-500.0,0.00022465,6]
[346124080,1734723042611,-965.31,0.00022465,6]
[346124081,1734723042620,-500.0,0.00022465,6]
[346124082,1734723042629,-500.0,0.00022465,6]
[346124083,1734723042638,-500.0,0.00022465,6]
[346124084,1734723042647,-500.0,0.00022465,6]
[346124085,1734723042657,-500.0,0.00022465,6]
[346124086,1734723042666,-500.0,0.00022465,6]
[346124087,1734723042675,-500.0,0.00022465,6]
[346124088,1734723042684,-500.0,0.00022465,6]
[346124089,1734723042694,-500.0,0.00022465,6]
[346124090,1734723042703,-991.32,0.00022465,6]
[346124091,1734723042713,-500.0,0.00022465,6]
[346124092,1734723042726,-500.0,0.00022465,6]
[346124093,1734723042735,-500.0,0.00022465,6]
[346124094,1734723042744,-641.94,0.00022465,6]
[346124095,1734723042753,-848.47,0.00022465,6]
[346124096,1734723042765,-601.21,0.00022465,6]
[346124097,1734723042775,-500.0,0.00022465,6]
[346124098,1734723042785,-1309.84,0.00022465,6]
[346124099,1734723042799,-500.0,0.00022465,6]
[346124100,1734723042808,-500.0,0.00022465,6]
[346124101,1734723042817,-500.0,0.00022465,6]
[346124102,1734723042826,-1226.25,0.00022465,6]
[346124103,1734723042836,-1143.27,0.00022465,6]
[346124104,1734723042845,-500.0,0.00022465,6]
[346124105,1734723042854,-500.0,0.00022465,6]
[346124106,1734723042863,-744.81,0.00022465,6]
[346124107,1734723042872,-500.0,0.00022465,6]
[346124108,1734723042882,-500.0,0.00022465,6]
[346124109,1734723042892,-500.0,0.00022465,6]
[346124110,1734723042901,-500.0,0.00022465,6]
[346124111,1734723042911,-500.0,0.00022465,6]
[346124112,1734723042920,-502.59,0.00022465,6]
[346124113,1734723042929,-500.0,0.00022465,6]
[346124114,1734723042939,-500.0,0.00022465,6]
[346124115,1734723042948,-500.0,0.00022465,6]
[346124116,1734723042958,-500.0,0.00022465,6]
[346124117,1734723042967,-500.0,0.00022465,6]
[346124119,1734723042977,-1744.59,0.00022465,6]
[346124120,1734723042986,-188.24958285,0.00022465,6]
[346124121,1734723042998,-1139.63,0.00022465,6]
[346124122,1734723043008,-949.11,0.00022465,6]
[346124123,1734723043018,-500.0,0.00022465,6]
[346124125,1734723043028,-787.66,0.00022465,6]
[346124127,1734723043038,-500.0,0.00022465,6]
[346124129,1734723043051,-436.19266623,0.00022465,6]
[346124131,1734723043061,-500.0,0.00022465,6]
[346124133,1734723043071,-500.0,0.00022465,6]
[346124135,1734723043081,-500.0,0.00022465,6]
[346124136,1734723043091,-2300.52,0.00022465,6]
[346124137,1734723043101,-500.0,0.00022465,6]
[346124138,1734723043111,-252.18167241,0.00022465,6]
[346124139,1734723043120,-500.0,0.00022465,6]
[346124140,1734723043130,-953.6,0.00022465,6]
[346124141,1734723043139,-665.65,0.00022465,6]
[346124142,1734723043149,-500.0,0.00022465,6]
[346124143,1734723043158,-839.1,0.00022465,6]
[346124144,1734723043168,-1057.57,0.00022465,6]
[346124145,1734723043178,-500.0,0.00022465,6]
[346124146,1734723043187,-1284.74,0.00022465,6]
[346124147,1734723043197,-500.0,0.00022465,6]
[346124149,1734723043206,-500.0,0.00022465,6]
[346124151,1734723043216,-500.0,0.00022465,6]
[346124153,1734723043226,-500.0,0.00022465,6]
[346124155,1734723043235,-500.0,0.00022465,6]
[346124158,1734723043244,-500.0,0.00022465,6]
[346124160,1734723043253,-500.0,0.00022465,6]
[346124165,1734723043263,-500.0,0.00022465,6]
[346124169,1734723043272,-500.0,0.00022465,6]
[346124172,1734723043282,-500.0,0.00022465,6]
[346124176,1734723043292,-556.22029606,0.00022465,6]
[346124179,1734723043304,-500.0,0.00022465,6]
[346124182,1734723043313,-1025.07,0.00022465,6]
[346124184,1734723043322,-500.0,0.00022465,6]
[346124187,1734723043331,-500.0,0.00022465,6]
[346124190,1734723043341,-500.0,0.00022465,6]
[346124192,1734723043350,-500.0,0.00022465,6]
[346124194,1734723043359,-4326.16,0.00022465,6]
[346124196,1734723043369,-500.0,0.00022465,6]
[346124198,1734723043378,-500.0,0.00022465,6]
[346124200,1734723043387,-500.0,0.00022465,6]
[346124203,1734723043397,-500.0,0.00022465,6]
[346124205,1734723043406,-500.0,0.00022465,6]
[346124207,1734723043415,-688.87,0.00022465,6]
[346124209,1734723043425,-500.0,0.00022465,6]
[346124211,1734723043434,-500.0,0.00022465,6]
[346124213,1734723043443,-13342.59,0.00022465,6]
[346124214,1734723043453,-500.0,0.00022465,6]
[346124216,1734723043462,-500.0,0.00022465,6]
[346124218,1734723043471,-500.0,0.00022465,6]
[346124220,1734723043481,-500.0,0.00022465,6]
[346124222,1734723043490,-500.0,0.00022465,6]
[346124224,1734723043499,-9427.69,0.00022465,6]
[346124226,1734723043508,-500.0,0.00022465,6]
[346124229,1734723043518,-500.0,0.00022465,6]
[346124231,1734723043527,-6976.19,0.00022465,6]
[346124233,1734723043536,-564.38,0.00022465,6]
[346124236,1734723043546,-500.0,0.00022465,6]
[346124238,1734723043555,-500.0,0.00022465,6]
[346124241,1734723043565,-500.0,0.00022465,6]
[346124245,1734723043575,-2041.94,0.00022465,2]
[346124247,1734723043584,-585.64,0.00022465,6]
[346124250,1734723043593,-500.0,0.00022465,6]
[346124252,1734723043602,-4335.79,0.00022465,6]
[346124254,1734723043612,-511.61,0.00022465,6]
[346124256,1734723043621,-1183.05,0.00022465,6]
[346124257,1734723043630,-500.0,0.00022465,6]
[346124260,1734723043639,-1519.71,0.00022465,6]
[346124261,1734723043649,-500.0,0.00022465,6]
[346124263,1734723043658,-500.0,0.00022465,6]
[346124265,1734723043668,-1536.53,0.00022465,6]
[346124267,1734723043677,-660.84,0.00022465,6]
[346124269,1734723043686,-733.81,0.00022465,6]
[346124271,1734723043695,-500.0,0.00022465,6]
[346124273,1734723043704,-2518.2,0.00022465,6]
[346124275,1734723043716,-672.82,0.00022465,6]
[346124277,1734723043726,-500.0,0.00022465,6]
[346124279,1734723043735,-500.0,0.00022465,6]
[346124281,1734723043744,-1157.87,0.00022465,6]
[346124283,1734723043754,-4095.84,0.00022465,6]
[346124296,1734723043862,-500.0,0.00022465,6]
[346124297,1734723043872,-631.8,0.00022465,6]
[346124298,1734723043881,-779.01,0.00022465,6]
[346124299,1734723043892,-10845.66100576,0.00022465,3]
[346124300,1734723043901,-500.0,0.00022465,6]
[346124301,1734723043910,-1790.0,0.00022465,6]
[346124302,1734723043919,-500.0,0.00022465,6]